bitfinex/quotes_SOLUSD_20250102
["timestamp","ask_amount","ask_price","bid_price","bid_amount"]
[1735811125449,0.90361523,207.52,207.46,8.06202309]
[1735811126067,8.96563832,207.52,207.45,8.06202309]
[1735811129055,8.06202309,207.52,207.45,8.06202309]
[1735811129661,0.90364917,207.51,207.45,8.06202309]
[1735811130772,8.06202309,207.5,207.41,8.06202309]
[1735811130980,0.90379105,207.49,207.41,8.06202309]
[1735811131485,8.42845065,207.49,207.41,8.06202309]
[1735811132197,0.90379105,207.49,207.41,8.06202309]
[1735811132655,7.5246596,207.5,207.43,8.06202309]
[1735811133070,15.58668269,207.5,207.43,8.06202309]
[1735811133269,16.49038423,207.5,207.43,8.06202309]
[1735811133469,7.5246596,207.49,207.43,8.06202309]
[1735811135746,7.5246596,207.49,207.44,24.49983225]
[1735811135960,7.5246596,207.49,207.45,8.06202309]
[1735811136358,16.49029558,207.5,207.41,0.72289031]
[1735811136566,8.06202309,207.49,207.42,8.06202309]
[1735811136771,0.90379458,207.48,207.42,8.06202309]
[1735811137184,8.42845811,207.49,207.42,8.06202309]
[1735811138278,8.06202309,207.48,207.41,8.06202309]
[1735811138474,0.90385753,207.47,207.41,8.06202309]
[1735811139481,0.90385753,207.47,207.42,23.776884]
[1735811142164,0.90385753,207.47,207.4,8.06202309]
[1735811143180,15.58668269,207.48,207.4,31.83890709]
[1735811143391,8.06202309,207.47,207.41,23.776884]
[1735811143580,8.96585768,207.47,207.41,23.776884]
[1735811144072,0.90383459,207.47,207.41,8.06202309]
[1735811145483,8.06202309,207.44,207.37,8.06202309]
[1735811145694,8.96607882,207.43,207.36,8.06202309]
[1735811146187,8.96607882,207.43,207.37,23.776884]
[1735811146688,7.5246596,207.42,207.37,23.776884]
[1735811146890,15.58668269,207.42,207.35,31.83890709]
[1735811147485,7.5246596,207.42,207.37,23.776884]
[1735811148889,8.06202309,207.43,207.37,23.776884]
[1735811149285,16.49072782,207.44,207.37,31.83890709]
[1735811149488,7.5246596,207.44,207.38,8.06202309]
[1735811149787,8.96598418,207.44,207.37,8.06202309]
[1735811149993,8.06202309,207.44,207.38,23.776884]
[1735811150396,8.06202309,207.45,207.38,31.83890709]
[1735811150891,16.49063223,207.46,207.38,31.83890709]
[1735811151092,8.06202309,207.45,207.38,31.83890709]
[1735811153370,8.96597263,207.46,207.38,31.83890709]
[1735811154392,9.1269596,207.47,207.41,31.83890709]
[1735811155404,1.6023,207.47,207.41,31.83890709]
[1735811155690,1.6023,207.47,207.43,31.83890709]
[1735811155895,6.2246,207.49,207.43,31.83890709]
[1735811156082,7.5246596,207.5,207.43,31.83890709]
[1735811157085,8.06202309,207.51,207.43,31.83890709]
[1735811157985,0.9037028,207.5,207.43,31.83890709]
[1735811158190,8.96572589,207.5,207.43,31.83890709]
[1735811158998,8.06202309,207.49,207.42,8.06202309]
[1735811159198,0.9038028,207.48,207.42,8.06202309]
[1735811159500,8.06202309,207.49,207.43,23.776884]
[1735811160807,8.06202309,207.5,207.43,23.776884]
[1735811161183,8.9657675,207.49,207.43,23.776884]
[1735811161509,8.9657675,207.49,207.41,8.06202309]
[1735811162217,8.06202309,207.48,207.41,8.06202309]
[1735811162683,8.06202309,207.47,207.4,31.83890709]
[1735811163408,8.06202309,207.48,207.41,8.06202309]
[1735811164101,8.06202309,207.49,207.41,8.06202309]
[1735811164299,8.06202309,207.49,207.42,23.776884]
[1735811164500,8.96578924,207.48,207.42,23.776884]
[1735811164710,8.06202309,207.46,207.38,25.93369298]
[1735811164884,8.06202309,207.46,207.39,23.776884]
[1735811165181,8.96592912,207.46,207.39,23.776884]
[1735811165907,8.96592912,207.46,207.39,31.83890709]
[1735811167503,8.06202309,207.45,207.39,23.776884]
[1735811167811,0.90397431,207.44,207.39,23.776884]
[1735811169510,8.9659974,207.44,207.37,8.06202309]
[1735811169699,8.9659974,207.44,207.38,23.776884]
[1735811172210,8.9659974,207.44,207.36,23.776884]
[1735811172211,8.06202309,207.42,207.36,23.776884]
[1735811172413,8.06202309,207.4,207.32,12.0585]
[1735811172603,8.06202309,207.38,207.31,8.06202309]
[1735811172798,0.90423742,207.44,207.33,31.83890709]
[1735811172993,8.06202309,207.4,207.33,31.83890709]
[1735811175514,8.06202309,207.41,207.35,23.776884]
[1735811176222,0.90410865,207.4,207.35,23.776884]
[1735811176723,8.06202309,207.41,207.35,23.776884]
[1735811177521,8.06202309,207.42,207.35,8.06202309]
[1735811178222,0.90409614,207.41,207.35,8.06202309]
[1735811178419,0.90409614,207.41,207.33,0.72327691]
[1735811178420,15.58668269,207.44,207.38,23.776884]
[1735811178824,8.06202309,207.44,207.38,23.776884]
[1735811179927,10.61462014,207.45,207.38,8.06202309]
[1735811180744,9.71052309,207.45,207.38,8.06202309]
[1735811180911,1.6485,207.45,207.4,23.776884]
[1735811184123,1.6485,207.45,207.4,8.06202309]
[1735811184327,6.6491,207.47,207.41,23.776884]
[1735811185336,14.71112309,207.47,207.4,8.06202309]
[1735811185631,8.96587097,207.46,207.42,20.0]
[1735811185845,8.06202309,207.45,207.42,20.0]
[1735811186052,8.96587097,207.46,207.39,23.776884]
[1735811186409,8.06202309,207.46,207.38,8.78506245]
[1735811186604,8.06202309,207.46,207.39,8.06202309]
[1735811187615,8.06202309,207.46,207.39,31.83890709]
[1735811187815,8.06202309,207.46,207.4,23.776884]
[1735811188934,15.61502774,207.47,207.4,23.776884]
[1735811189117,0.90390465,207.47,207.43,23.776884]
[1735811189331,7.5246596,207.48,207.43,23.776884]
[1735811189627,7.5246596,207.48,207.42,31.83890709]
[1735811189933,8.06202309,207.48,207.42,23.776884]
[1735811190138,8.06202309,207.48,207.44,43.776884]
[1735811192248,8.06202309,207.46,207.4,12.0538]
[1735811192429,8.96587371,207.45,207.37,8.06202309]
[1735811192614,8.06202309,207.44,207.37,8.06202309]
[1735811192816,0.90394719,207.49,207.35,0.72315775]
[1735811192817,8.06202309,207.46,207.41,23.776884]
[1735811193918,7.5246596,207.48,207.43,23.776884]
[1735811194536,8.06202309,207.49,207.43,23.776884]
[1735811194537,7.5246596,207.49,207.43,23.776884]
[1735811194939,15.58668269,207.49,207.42,23.776884]
[1735811195338,8.06202309,207.49,207.42,23.776884]
[1735811195921,8.06202309,207.49,207.45,20.0]
[1735811196842,9.1672596,207.5,207.45,20.0]
[1735811198043,17.22928269,207.5,207.45,20.0]
[1735811198246,9.70462309,207.5,207.45,20.0]
[1735811199245,1.6426,207.5,207.46,23.776884]
[1735811199648,10.60829724,207.5,207.46,23.776884]
[1735811199943,9.70462309,207.5,207.46,23.776884]
[1735811201244,1.6426,207.5,207.46,23.776884]
[1735811201719,1.6426,207.5,207.43,8.06202309]
[1735811201916,2.546265,207.5,207.43,23.776884]
[1735811202139,10.60828809,207.5,207.42,8.78499727]
[1735811202439,9.70462309,207.5,207.43,23.776884]
[1735811204153,1.6426,207.5,207.44,8.06202309]
[1735811205027,9.70462309,207.5,207.43,31.83890709]
[1735811207444,15.58668269,207.52,207.45,8.06202309]
[1735811208052,15.58668269,207.52,207.46,23.776884]
[1735811209143,8.06202309,207.52,207.46,23.776884]
[1735811209539,8.06202309,207.52,207.45,6.83890709]
[1735811209952,8.06202309,207.52,207.45,7.56174645]
[1735811210950,8.06202309,207.52,207.45,6.83890709]
[1735811211862,8.06202309,207.52,207.44,20.83647148]
[1735811212461,8.06202309,207.51,207.44,20.11362309]
[1735811216345,8.06202309,207.51,207.44,12.0516]
[1735811217644,8.96566634,207.5,207.44,20.0]
[1735811217850,8.06202309,207.49,207.45,20.0]
[1735811218761,8.06202309,207.48,207.44,20.0]
[1735811220555,8.06202309,207.48,207.41,20.11532309]
[1735811220766,8.06202309,207.46,207.38,12.055]
[1735811220964,8.06202309,207.44,207.36,8.06202309]
[1735811221134,8.96605098,207.43,207.36,8.06202309]
[1735811221339,8.06202309,207.42,207.35,8.06202309]
[1735811222059,0.90405477,207.42,207.35,8.06202309]
[1735811222364,8.96607786,207.42,207.35,8.06202309]
[1735811223233,1.514,207.45,207.37,28.06202309]
[1735811223234,8.06202309,207.44,207.37,28.06202309]
[1735811223440,10.48010054,207.45,207.38,8.06202309]
[1735811224645,1.514,207.45,207.39,8.06202309]
[1735811226646,1.514,207.45,207.41,8.06202309]
[1735811227362,1.514,207.45,207.4,8.06202309]
[1735811228273,1.514,207.45,207.42,20.0]
[1735811228441,1.514,207.45,207.39,8.06202309]
[1735811228759,1.514,207.45,207.4,20.0]
[1735811228956,1.514,207.45,207.4,28.06202309]
[1735811229262,1.514,207.45,207.4,20.0]
[1735811232466,1.514,207.45,207.41,8.06202309]
[1735811232654,1.514,207.45,207.39,12.054]
[1735811232655,8.96587992,207.47,207.42,20.0]
[1735811232857,8.06202309,207.45,207.39,12.054]
[1735811233568,8.06202309,207.46,207.39,12.054]
[1735811233977,7.5246596,207.48,207.39,12.054]
[1735811233978,8.9659374,207.45,207.39,20.0]
[1735811234149,8.06202309,207.45,207.39,20.0]
[1735811234464,8.9659374,207.46,207.39,20.0]
[1735811234644,8.06202309,207.45,207.39,20.0]
[1735811235358,8.9659374,207.46,207.39,20.0]
[1735811235575,8.9659374,207.46,207.39,28.06202309]
[1735811235778,8.9659374,207.46,207.39,20.0]
[1735811235956,8.42854191,207.47,207.4,8.06202309]
[1735811236281,15.58668269,207.47,207.4,8.06202309]
[1735811236485,7.5246596,207.47,207.41,8.06202309]
[1735811236795,7.5246596,207.47,207.42,8.06202309]
[1735811237080,7.5246596,207.48,207.43,28.06202309]
[1735811237286,7.5246596,207.48,207.42,8.06202309]
[1735811238280,7.5246596,207.48,207.45,20.0]
[1735811238851,9.64272309,207.49,207.45,20.0]
[1735811240371,1.5807,207.49,207.45,20.0]
[1735811240576,1.5807,207.49,207.43,28.06202309]
[1735811241267,1.5807,207.49,207.44,8.06202309]
[1735811241771,1.5807,207.49,207.43,28.06202309]
[1735811241955,22.05068269,207.5,207.45,20.0]
[1735811242877,8.06202309,207.49,207.45,20.0]
[1735811243060,8.96574791,207.49,207.45,20.0]
[1735811245354,8.06202309,207.48,207.45,20.0]
[1735811245559,8.06202309,207.47,207.36,0.72305911]
[1735811245774,8.9659503,207.46,207.38,8.06202309]
[1735811245959,8.9659503,207.46,207.4,20.0]
[1735811246880,0.90392721,207.46,207.4,28.06202309]
[1735811247192,8.4285545,207.47,207.4,28.06202309]
[1735811247491,7.5246596,207.47,207.41,8.06202309]
[1735811247783,7.5246596,207.47,207.41,20.11542309]
[1735811248382,8.06202309,207.48,207.41,20.11542309]
[1735811248593,0.90379666,207.47,207.41,12.0534]
[1735811248968,8.96581975,207.47,207.41,12.0534]
[1735811250486,8.06202309,207.46,207.39,8.06202309]
[1735811250663,0.90393598,207.45,207.39,8.06202309]
[1735811250868,8.96595907,207.45,207.38,28.06202309]
[1735811251069,8.96595907,207.45,207.4,20.0]
[1735811251390,8.96595907,207.45,207.37,20.11712309]
[1735811251565,10.52875907,207.45,207.37,20.11712309]
[1735811251764,10.52875907,207.45,207.38,8.06202309]
[1735811252385,8.06202309,207.43,207.36,8.06202309]
[1735811252559,0.90409212,207.42,207.36,8.06202309]
[1735811252764,0.90409212,207.42,207.34,12.0574]
[1735811252765,8.96611521,207.42,207.37,20.0]
[1735811257588,8.06202309,207.42,207.37,20.0]
[1735811257792,8.96612424,207.43,207.37,20.0]
[1735811258890,8.96612424,207.43,207.34,20.11942309]
[1735811258891,8.06202309,207.42,207.34,20.11942309]
[1735811259096,8.96620588,207.41,207.34,20.11942309]
[1735811261371,8.96620588,207.41,207.34,12.0574]
[1735811261566,0.90418279,207.41,207.35,8.06202309]
[1735811262466,0.90418279,207.41,207.34,12.0574]
[1735811262467,8.96620588,207.41,207.34,20.11942309]
[1735811264782,8.96620588,207.41,207.31,12.0591]
[1735811264783,8.06202309,207.39,207.31,12.0591]
[1735811264978,0.90428143,207.38,207.32,8.06202309]
[1735811265293,0.90428143,207.38,207.33,8.06202309]
[1735811265884,0.9042689,207.39,207.33,8.06202309]
[1735811266678,8.06202309,207.38,207.32,8.06202309]
[1735811266878,0.90427601,207.37,207.32,8.06202309]
[1735811268101,0.90427181,207.37,207.32,8.06202309]
[1735811269406,8.06202309,207.38,207.32,8.06202309]
[1735811271003,8.06202309,207.39,207.32,8.06202309]
[1735811271199,0.90425199,207.38,207.32,8.06202309]
[1735811272184,8.06202309,207.39,207.32,8.06202309]
[1735811272502,0.90425692,207.38,207.32,8.06202309]
[1735811273407,8.96628001,207.38,207.32,8.06202309]
[1735811273710,0.90425692,207.38,207.32,8.06202309]
[1735811274102,0.90425692,207.38,207.31,12.0591]
[1735811274305,0.90425692,207.38,207.32,8.06202309]
[1735811274826,0.90425692,207.38,207.31,12.0591]
[1735811275107,0.90425692,207.38,207.32,8.06202309]
[1735811275812,1.6149,207.37,207.31,12.0591]
[1735811276011,1.6149,207.37,207.31,20.12112309]
[1735811276196,0.904258,207.36,207.31,20.12112309]
[1735811277209,2.51921691,207.37,207.31,20.12112309]
[1735811278088,8.06202309,207.35,207.29,5.177081]
[1735811278289,8.06202309,207.33,207.31,20.0]
[1735811279196,8.06202309,207.34,207.31,20.0]
[1735811280114,8.06202309,207.35,207.31,20.0]
[1735811280294,0.90441353,207.34,207.31,20.0]
[1735811281007,0.90441353,207.34,207.24,5.177081]
[1735811281008,8.06202309,207.32,207.25,20.12452309]
[1735811281311,0.90455978,207.31,207.28,20.0]
[1735811283188,0.90453671,207.36,207.28,28.06202309]
[1735811283519,8.06202309,207.34,207.28,28.06202309]
[1735811283891,8.06202309,207.35,207.28,28.06202309]
[1735811284818,0.90453671,207.36,207.31,8.06202309]
[1735811285114,89.7246596,207.39,207.34,8.06202309]
[1735811285115,7.5246596,207.39,207.34,8.06202309]
[1735811285817,0.90420042,207.4,207.34,8.06202309]
[1735811287003,0.90420042,207.4,207.35,8.06202309]
[1735811287301,0.90415185,207.41,207.35,8.06202309]
[1735811287497,8.96617494,207.41,207.34,8.06202309]
[1735811287912,8.06202309,207.4,207.29,0.72333001]
[1735811288217,8.96629484,207.39,207.32,8.06202309]
[1735811288416,0.90427175,207.39,207.33,8.06202309]
[1735811288595,0.90427175,207.39,207.34,8.06202309]
[1735811288797,0.90418389,207.4,207.35,28.06202309]
[1735811289299,8.1251,207.42,207.36,8.06202309]
[1735811289500,9.02918599,207.42,207.36,8.06202309]
[1735811292917,8.1251,207.42,207.37,8.06202309]
[1735811293122,0.9040828,207.41,207.37,8.06202309]
[1735811293324,8.1251,207.42,207.36,8.06202309]
[1735811294608,0.90408479,207.41,207.36,8.06202309]
[1735811294809,9.02919899,207.42,207.36,8.06202309]
[1735811295005,8.1251,207.42,207.38,8.06202309]
[1735811295210,1.5699,207.42,207.38,8.06202309]
[1735811295921,1.5699,207.42,207.37,8.06202309]
[1735811297021,1.5699,207.42,207.38,8.06202309]
[1735811297919,1.5699,207.42,207.37,8.06202309]
[1735811298126,0.90402684,207.44,207.38,8.06202309]
[1735811299825,0.90402684,207.44,207.39,28.06202309]
[1735811301539,0.90402684,207.44,207.38,8.06202309]
[1735811302927,8.06202309,207.42,207.36,12.0559]
[1735811303120,8.96613855,207.41,207.35,20.0]
[1735811303316,8.96613855,207.41,207.37,20.0]
[1735811303819,8.06202309,207.4,207.37,20.0]
[1735811304024,0.90420739,207.39,207.37,20.0]
[1735811305530,8.06202309,207.4,207.37,20.0]
[1735811307228,8.06202309,207.4,207.32,12.0581]
[1735811307428,8.96619487,207.39,207.33,8.06202309]
[1735811308235,0.90417178,207.39,207.33,8.06202309]
[1735811309039,8.96619487,207.39,207.33,8.06202309]
[1735811309518,0.90417178,207.39,207.34,8.06202309]
[1735811309718,0.90423281,207.4,207.34,8.06202309]
[1735811310229,0.90423281,207.4,207.35,28.06202309]
[1735811310406,7.5246596,207.41,207.37,8.06202309]
[1735811311241,0.90415305,207.43,207.37,8.06202309]
[1735811311539,8.96617614,207.43,207.37,8.06202309]
[1735811311725,8.96617614,207.43,207.36,8.06202309]
[1735811311906,8.06202309,207.42,207.35,8.06202309]
[1735811312106,0.90411517,207.41,207.35,8.06202309]
[1735811312711,0.90411517,207.41,207.34,8.06202309]
[1735811312712,8.96613826,207.41,207.34,8.06202309]
[1735811313733,8.96613826,207.41,207.33,12.058]
[1735811314038,8.96613826,207.41,207.34,8.06202309]
[1735811314414,8.06202309,207.39,207.32,8.06202309]
[1735811314637,0.90426791,207.38,207.32,8.06202309]
[1735811314934,0.90426791,207.38,207.33,28.06202309]
[1735811315549,0.90427057,207.39,207.33,28.06202309]
[1735811316146,0.90427057,207.39,207.34,8.06202309]
[1735811317242,8.42887465,207.41,207.36,8.06202309]
[1735811318218,0.90421505,207.41,207.36,8.06202309]
[1735811318639,0.90411211,207.42,207.36,8.06202309]
[1735811319243,8.9661352,207.42,207.35,8.06202309]
[1735811319538,0.90411211,207.42,207.33,32.0576]
[1735811319741,0.90411211,207.42,207.35,8.06202309]
[1735811320328,7.5246596,207.43,207.37,8.06202309]
[1735811320942,0.90410615,207.44,207.37,8.06202309]
[1735811320943,8.42876575,207.44,207.37,8.06202309]
[1735811321917,0.90410615,207.44,207.37,8.06202309]
[1735811323843,8.06202309,207.43,207.36,8.06202309]
[1735811324047,0.9040984,207.42,207.36,8.06202309]
[1735811324432,0.9040984,207.42,207.33,32.0576]
[1735811324829,0.9040984,207.42,207.36,8.06202309]
[1735811326537,8.96612149,207.42,207.35,8.06202309]
[1735811328329,8.06202309,207.41,207.34,8.06202309]
[1735811328532,0.90420265,207.4,207.34,8.06202309]
[1735811329636,8.06202309,207.38,207.3,5.177081]
[1735811329838,0.90433579,207.38,207.32,8.06202309]
[1735811330635,0.90433579,207.38,207.33,8.06202309]
[1735811332656,2.4852417,207.39,207.33,8.06202309]
[1735811335950,10.0099013,207.39,207.33,8.06202309]
[1735811336862,2.4852417,207.39,207.33,8.06202309]
[1735811337552,10.0099013,207.39,207.33,8.06202309]
[1735811340661,8.06202309,207.36,207.28,12.0609]
[1735811340835,8.96645155,207.35,207.28,20.12292309]
[1735811342537,0.90442846,207.35,207.28,20.12292309]
[1735811342738,8.96645155,207.35,207.27,20.0]
[1735811343059,8.96645155,207.35,207.28,8.06202309]
[1735811343232,0.90442846,207.35,207.28,8.06202309]
[1735811344350,0.90442846,207.35,207.27,20.0]
[1735811344552,0.90442846,207.35,207.28,8.06202309]
[1735811345941,0.90442846,207.35,207.29,8.06202309]
[1735811346955,7.5246596,207.37,207.32,8.06202309]
[1735811347137,7.5246596,207.37,207.34,8.06202309]
[1735811347343,7.5246596,207.37,207.36,8.06202309]
[1735811348145,13.8305596,207.43,207.36,8.06202309]
[1735811348340,14.73460225,207.43,207.37,8.06202309]
[1735811348576,0.90404265,207.42,207.36,8.06202309]
[1735811348873,0.90404265,207.42,207.37,8.06202309]
[1735811349067,0.90404265,207.42,207.36,28.06202309]
[1735811349763,0.90411365,207.42,207.36,28.06202309]
[1735811350841,0.90410312,207.41,207.36,28.06202309]
[1735811351043,0.90410312,207.41,207.35,8.06202309]
[1735811351838,0.90410755,207.42,207.35,8.06202309]
[1735811352053,0.90410877,207.41,207.35,8.06202309]
[1735811352256,0.9041106,207.42,207.35,8.06202309]
[1735811352665,0.9041106,207.42,207.36,28.06202309]
[1735811352850,0.90409378,207.41,207.36,28.06202309]
[1735811353253,7.20998245,207.43,207.37,8.06202309]
[1735811353962,0.90405276,207.42,207.37,8.06202309]
[1735811354468,8.96608055,207.41,207.36,20.0]
[1735811355564,8.06202309,207.41,207.36,20.0]
[1735811355765,8.06202309,207.41,207.34,8.06202309]
[1735811362764,8.96614206,207.42,207.36,20.0]
[1735811364777,8.06202309,207.41,207.36,20.0]
[1735811365272,8.06202309,207.39,207.36,20.0]
[1735811365455,0.90423783,207.38,207.32,8.06202309]
[1735811365658,8.96626092,207.38,207.31,8.06202309]
[1735811366575,8.06202309,207.37,207.31,8.06202309]
[1735811366769,0.90432853,207.36,207.31,8.06202309]
[1735811367453,0.90432853,207.36,207.3,20.12162309]
[1735811367655,0.90432853,207.36,207.3,8.06202309]
[1735811367952,8.96635162,207.36,207.3,8.06202309]
[1735811368261,8.06202309,207.35,207.32,20.0]
[1735811368464,0.90439853,207.35,207.32,20.0]
[1735811368660,0.90439853,207.35,207.29,8.06202309]
[1735811368661,8.06202309,207.36,207.3,28.06202309]
[1735811368866,0.90431818,207.36,207.3,28.06202309]
[1735811369068,10.54533827,207.37,207.3,28.06202309]
[1735811369467,10.54533827,207.37,207.31,8.06202309]
[1735811369975,10.54533827,207.37,207.3,28.06202309]
[1735811370155,8.06202309,207.36,207.32,20.0]
[1735811370355,0.9044105,207.35,207.32,20.0]
[1735811370780,0.9044105,207.35,207.29,8.06202309]
[1735811371373,8.96643359,207.35,207.28,8.06202309]
[1735811372183,0.9044105,207.35,207.29,8.06202309]
[1735811373584,8.96643359,207.35,207.28,8.06202309]
[1735811374980,8.96643359,207.35,207.27,28.06202309]
[1735811375165,8.96643359,207.35,207.28,8.06202309]
[1735811375365,0.9044105,207.35,207.29,8.06202309]
[1735811376690,8.96643359,207.35,207.28,8.06202309]
[1735811377981,8.96643359,207.35,207.21,12.0649]
[1735811377982,31.83890709,207.32,207.21,12.0649]
[1735811378164,23.776884,207.28,207.19,0.72370619]
[1735811378366,10.54499087,207.28,207.2,8.06202309]
[1735811378984,10.54499087,207.28,207.18,24.30048805]
[1735811378985,1.5783,207.28,207.22,8.06202309]
[1735811379282,1.5783,207.28,207.24,8.06202309]
[1735811379462,0.90474851,207.33,207.19,0.72379881]
[1735811379463,7.5246596,207.32,207.27,8.06202309]
[1735811379669,7.5246596,207.32,207.29,8.06202309]
[1735811379896,7.5246596,207.32,207.3,8.06202309]
[1735811380084,8.42922661,207.36,207.31,8.06202309]
[1735811380285,7.5246596,207.36,207.32,8.06202309]
[1735811380867,1.5783,207.38,207.28,20.0]
[1735811381165,9.64032309,207.38,207.31,8.06202309]
[1735811383187,8.06202309,207.37,207.28,12.78402153]
[1735811383390,8.06202309,207.36,207.3,8.06202309]
[1735811384890,8.06202309,207.36,207.29,8.06202309]
[1735811385493,0.90435575,207.35,207.29,8.06202309]
[1735811386487,2.48266784,207.38,207.31,8.06202309]
[1735811386695,14.0714596,207.39,207.33,8.06202309]
[1735811386889,8.4289341,207.39,207.34,8.06202309]
[1735811387192,8.42885068,207.39,207.34,8.06202309]
[1735811387416,7.5246596,207.39,207.34,8.06202309]
[1735811387569,7.5246596,207.39,207.36,8.06202309]
[1735811387776,8.42881552,207.42,207.36,8.06202309]
[1735811388093,16.49083861,207.42,207.35,8.06202309]
[1735811388587,8.06202309,207.41,207.34,8.06202309]
[1735811389297,8.96614511,207.4,207.34,8.06202309]
[1735811389472,8.06202309,207.38,207.35,20.0]
[1735811390086,8.06202309,207.38,207.34,20.0]
[1735811390575,8.06202309,207.38,207.35,20.0]
[1735811391069,0.90421029,207.41,207.35,20.0]
[1735811391475,8.06202309,207.39,207.35,20.0]
[1735811392196,8.06202309,207.4,207.35,20.0]
[1735811392377,8.96620909,207.4,207.36,20.0]
[1735811393297,0.90418014,207.39,207.36,20.0]
[1735811393703,8.96621094,207.42,207.36,20.0]
[1735811393878,8.06202309,207.42,207.36,20.0]
[1735811394576,8.96611629,207.41,207.34,8.06202309]
[1735811394781,8.96611629,207.41,207.33,28.06202309]
[1735811394782,8.06202309,207.4,207.33,28.06202309]
[1735811395094,0.90415944,207.39,207.33,40.12002309]
[1735811395803,8.06202309,207.4,207.33,40.12002309]
[1735811396096,0.90417586,207.39,207.33,40.12002309]
[1735811396283,8.06202309,207.4,207.33,40.12002309]
[1735811397080,8.06202309,207.41,207.34,8.06202309]
[1735811400102,8.06202309,207.42,207.35,20.11892309]
[1735811400506,9.64062309,207.43,207.37,8.06202309]
[1735811400702,1.5786,207.43,207.38,8.06202309]
[1735811400884,1.5786,207.43,207.37,8.06202309]
[1735811404113,9.64062309,207.43,207.37,8.06202309]
[1735811404631,8.06202309,207.41,207.35,20.11892309]
[1735811404787,8.06202309,207.41,207.35,12.0569]
[1735811404788,0.90411349,207.4,207.35,12.0569]
[1735811404982,8.96613658,207.4,207.32,12.0585]
[1735811405317,8.06202309,207.36,207.31,1.5737]
[1735811405610,8.06202309,207.36,207.33,20.0]
[1735811405809,8.06202309,207.38,207.33,20.0]
[1735811405996,0.9042681,207.37,207.33,20.0]
[1735811406708,8.06202309,207.35,207.28,20.12242309]
[1735811406916,8.96642693,207.34,207.28,20.12242309]
[1735811408419,0.90440384,207.34,207.28,20.12242309]
[1735811408601,0.9044322,207.35,207.29,8.06202309]
[1735811409413,1.6455,207.36,207.31,8.06202309]
[1735811409603,1.6455,207.36,207.32,8.06202309]
[1735811410117,1.6455,207.36,207.31,8.06202309]
[1735811411800,8.96628776,207.4,207.33,8.06202309]
[1735811412114,0.90426467,207.4,207.34,8.06202309]
[1735811413615,8.96628776,207.4,207.34,8.06202309]
[1735811413821,8.96628776,207.4,207.32,12.0585]
[1735811413822,8.06202309,207.38,207.32,12.0585]
[1735811414015,0.90428054,207.37,207.32,12.0585]
[1735811414215,8.06202309,207.38,207.32,20.12052309]
[1735811414520,0.9042692,207.37,207.32,12.0585]
[1735811414722,0.9042692,207.37,207.32,20.12052309]
[1735811414915,8.06202309,207.38,207.32,20.12052309]
[1735811415114,8.06202309,207.39,207.32,20.12052309]
[1735811415315,0.90426353,207.38,207.32,20.12052309]
[1735811415816,8.96628662,207.38,207.31,8.06202309]
[1735811416699,0.90426353,207.38,207.34,20.0]
[1735811416922,8.42897468,207.4,207.35,20.0]
[1735811417304,8.42897468,207.4,207.34,28.06202309]
[1735811418327,0.90431508,207.4,207.34,28.06202309]
[1735811418729,2.44515668,207.41,207.35,8.06202309]
[1735811418924,1.541,207.41,207.37,8.06202309]
[1735811419131,0.90406467,207.4,207.35,8.06202309]
[1735811419309,8.96608776,207.4,207.34,20.0]
[1735811419510,8.06202309,207.39,207.32,8.06202309]
[1735811419717,0.90430637,207.38,207.32,8.06202309]
[1735811420716,8.06202309,207.36,207.29,8.06202309]
[1735811420915,0.9044232,207.35,207.29,8.06202309]
[1735811421833,0.9044232,207.35,207.3,8.06202309]
[1735811422031,0.90438683,207.36,207.3,8.06202309]
[1735811422833,0.90437495,207.37,207.31,28.06202309]
[1735811423038,0.9042557,207.37,207.32,8.06202309]
[1735811423336,0.90428611,207.38,207.33,8.06202309]
[1735811423519,7.5246596,207.39,207.33,8.06202309]
[1735811423520,8.42889815,207.39,207.33,8.06202309]
[1735811423717,7.5246596,207.39,207.34,8.06202309]
[1735811423929,0.90412337,207.38,207.31,20.0]
[1735811424127,0.90412337,207.38,207.33,8.06202309]
[1735811424535,0.9042321,207.39,207.33,8.06202309]
[1735811424740,0.9042321,207.39,207.34,8.06202309]
[1735811425722,0.90419964,207.4,207.34,8.06202309]
[1735811427740,10.50717537,207.41,207.34,8.06202309]
[1735811427923,2.44515228,207.41,207.35,28.06202309]
[1735811429229,1.541,207.41,207.35,20.0]
[1735811429430,1.541,207.41,207.36,8.06202309]
[1735811429740,1.541,207.41,207.37,8.06202309]
[1735811431048,1.541,207.41,207.38,8.06202309]
[1735811433744,1.541,207.41,207.37,8.06202309]
[1735811435332,8.42867355,207.44,207.38,8.06202309]
[1735811435539,16.49069664,207.44,207.38,8.06202309]